bitfinex-derivatives/quotes_BTCF0:USTF0_20250127
["timestamp","ask_amount","ask_price","bid_price","bid_amount"]
[1737963388082,0.3608,98435.0,98426.0,0.00152432]
[1737963388379,0.3608,98435.0,98406.0,0.3608]
[1737963388380,0.3608,98427.0,98401.0,0.395101]
[1737963388667,0.3608,98422.0,98401.0,0.1917]
[1737963389064,0.3608,98422.0,98405.0,0.01502091]
[1737963389273,0.3608,98422.0,98411.0,0.00015241]
[1737963390561,0.3558,98422.0,98411.0,0.00015241]
[1737963390758,0.3558,98422.0,98419.0,0.003]
[1737963390964,7.802e-05,98426.0,98419.0,0.003]
[1737963391365,7.802e-05,98426.0,98425.0,0.3608]
[1737963391568,7.802e-05,98426.0,98419.0,0.003]
[1737963391867,0.3608,98424.0,98419.0,0.003]
[1737963392061,0.3608,98424.0,98411.0,0.00015241]
[1737963392062,0.3608,98420.0,98411.0,0.00015241]
[1737963392262,0.3608,98420.0,98411.0,0.00115241]
[1737963392968,0.3608,98420.0,98419.0,0.004]
[1737963393470,0.3608,98420.0,98411.0,0.00115241]
[1737963393662,0.3608,98420.0,98411.0,0.00215241]
[1737963393869,0.3608,98420.0,98419.0,0.003]
[1737963394280,0.3608,98420.0,98419.0,0.007]
[1737963394775,0.3608,98420.0,98419.0,0.004]
[1737963395680,0.3608,98420.0,98419.0,0.007]
[1737963395873,0.3608,98420.0,98419.0,0.003]
[1737963396579,0.3608,98420.0,98419.0,0.007]
[1737963396879,0.3608,98420.0,98400.0,0.1]
[1737963397182,0.3608,98420.0,98354.0,0.3608]
[1737963397183,0.7216,98401.0,98354.0,0.3608]
[1737963397387,0.3634,98419.0,98354.0,0.01378037]
[1737963397388,0.3608,98377.0,98354.0,0.01378037]
[1737963397576,0.3608,98368.0,98358.0,0.20349]
[1737963397776,0.3608,98368.0,98345.0,0.203517]
[1737963398083,0.3608,98356.0,98343.0,0.38332756]
[1737963398286,0.3608,98356.0,98353.0,0.00015249]
[1737963398674,9.898e-05,98355.0,98353.0,0.00015249]
[1737963399883,0.00209898,98355.0,98353.0,0.00015249]
[1737963400079,0.3608,98363.0,98353.0,0.36095249]
[1737963400386,0.3608,98363.0,98353.0,0.01383839]
[1737963400579,0.3608,98363.0,98353.0,0.00015249]
[1737963400580,0.3608,98354.0,98353.0,0.00015249]
[1737963400979,0.3608,98354.0,98334.0,0.00152506]
[1737963400980,0.864299,98354.0,98334.0,0.01483332]
[1737963401179,0.3608,98345.0,98334.0,0.00152506]
[1737963401382,0.00010455,98344.0,98334.0,0.00152506]
[1737963401576,0.3608,98365.0,98338.0,0.3608]
[1737963401780,0.3608,98379.0,98341.0,0.3608]
[1737963401986,0.3608,98369.0,98341.0,0.3608]
[1737963402181,0.3608,98379.0,98352.0,0.3608]
[1737963402384,0.3608,98369.0,98352.0,0.3608]
[1737963402687,0.00015249,98370.0,98353.0,0.003]
[1737963402688,0.3608,98361.0,98353.0,0.003]
[1737963402873,0.00015249,98370.0,98353.0,0.003]
[1737963402874,0.3608,98369.0,98353.0,0.003]
[1737963403079,0.3658,98369.0,98352.0,0.3608]
[1737963403279,0.3608,98360.0,98352.0,0.3608]
[1737963404090,0.3618,98369.0,98352.0,0.3608]
[1737963404684,0.3618,98369.0,98352.0,0.3618]
[1737963405092,0.001,98369.0,98352.0,0.3618]
[1737963405397,0.3608,98381.0,98364.0,0.203478]
[1737963405689,0.3608,98381.0,98361.0,0.3608]
[1737963405889,0.203446,98380.0,98361.0,0.3608]
[1737963406084,0.3608,98381.0,98361.0,0.3608]
[1737963406690,0.3608,98381.0,98370.0,0.3608]
[1737963406691,0.36095249,98381.0,98370.0,0.3608]
[1737963406884,0.36095249,98381.0,98361.0,0.3608]
[1737963407291,0.36095249,98381.0,98361.0,0.3618]
[1737963407891,0.3608,98371.0,98361.0,0.3618]
[1737963409199,0.3608,98371.0,98361.0,0.001]
[1737963409897,0.3608,98371.0,98361.0,0.002]
[1737963410097,0.3628,98371.0,98361.0,0.002]
[1737963410694,0.3628,98371.0,98353.0,0.1915062]
[1737963410899,0.002,98371.0,98366.0,0.3608]
[1737963411291,0.002,98371.0,98360.0,0.11964677]
[1737963411491,0.002,98371.0,98358.0,0.5296]
[1737963411888,0.002,98371.0,98359.0,0.1688]
[1737963412094,0.002,98371.0,98366.0,0.3608]
[1737963412392,0.002,98371.0,98359.0,0.1688]
[1737963413096,0.3608,98370.0,98353.0,0.1915062]
[1737963413293,0.002,98371.0,98353.0,0.1915062]
[1737963413699,0.002,98371.0,98353.0,0.3603062]
[1737963413993,0.00152506,98388.0,98353.0,0.3603062]
[1737963413994,0.15001252,98403.0,98370.0,0.36090822]
[1737963414199,0.3608,98455.0,98402.0,0.5642]
[1737963414200,0.00056001,98429.0,98402.0,0.5642]
[1737963414401,0.3608,98438.0,98411.0,0.3608]
[1737963414799,0.203329,98437.0,98411.0,0.3608]
[1737963415005,0.564153,98425.0,98411.0,0.3608]
[1737963415198,0.564153,98425.0,98402.0,0.3608]
[1737963415199,0.3608,98414.0,98408.0,0.00015241]
[1737963415702,0.00015241,98427.0,98408.0,0.00015241]
[1737963416000,0.00015241,98427.0,98421.0,0.3608]
[1737963416198,0.00015241,98427.0,98422.0,0.3608]
[1737963416388,0.34241826,98435.0,98422.0,0.3608]
[1737963416597,0.34241826,98435.0,98421.0,0.01348789]
[1737963416900,0.203341,98431.0,98411.0,0.001]
[1737963417101,0.3608,98426.0,98411.0,0.001]
[1737963417298,0.203341,98431.0,98422.0,0.001]
[1737963417497,0.3608,98426.0,98422.0,0.002]
[1737963418004,0.00015241,98428.0,98422.0,0.001]
[1737963418201,0.00015241,98428.0,98411.0,0.3608]
[1737963418202,0.00015241,98428.0,98420.0,0.3608]
[1737963418398,0.00015241,98428.0,98411.0,0.3618]
[1737963418704,0.3608,98425.0,98411.0,0.37499964]
[1737963418904,0.3608,98417.0,98411.0,0.001]
[1737963419203,0.3608,98417.0,98389.0,0.3608]
[1737963419204,0.3608,98412.0,98389.0,0.3608]
[1737963419398,0.3608,98392.0,98372.0,0.3712]
[1737963419703,0.3608,98383.0,98372.0,0.3712]
[1737963420305,0.3608,98383.0,98375.0,0.01384938]
[1737963420606,0.203452,98377.0,98373.0,0.00015241]
[1737963420804,4.1e-07,98392.0,98382.0,0.10164409]
[1737963421010,0.00152467,98445.0,98393.0,0.1688]
[1737963421207,0.00152467,98445.0,98432.0,0.3608]
[1737963421604,0.00152467,98445.0,98440.0,0.3608]
[1737963422406,0.00152467,98445.0,98433.0,0.00015241]
[1737963422610,0.203325,98439.0,98433.0,0.00015241]
[1737963422904,0.3608,98440.0,98433.0,0.00015241]
[1737963423103,0.00152467,98445.0,98433.0,0.00015241]
[1737963423808,0.203319,98442.0,98433.0,0.00015241]
[1737963424008,0.00352467,98445.0,98433.0,0.00015241]
[1737963424211,0.00352467,98445.0,98438.0,0.3608]
[1737963424408,0.00152467,98445.0,98438.0,0.3608]
[1737963424607,0.00152467,98445.0,98433.0,0.00115241]
[1737963424800,0.3608,98436.0,98433.0,0.00315241]
[1737963425004,0.203334,98434.0,98433.0,0.00315241]
[1737963425404,0.203334,98434.0,98433.0,0.00015241]
[1737963425717,0.3,98434.0,98398.0,0.00152476]
[1737963426008,0.564206,98400.0,98398.0,0.00152476]
[1737963426211,0.203443,98382.0,98366.0,0.85323432]
[1737963426516,0.203446,98380.0,98370.0,0.0139576]
[1737963426811,0.564223,98392.0,98370.0,0.00010822]
[1737963427013,0.00015241,98385.0,98370.0,0.00010822]
[1737963427197,0.203451,98378.0,98370.0,0.00010822]
[1737963427404,0.00015241,98385.0,98370.0,0.00010822]
[1737963427405,0.3608,98382.0,98370.0,0.00010822]
[1737963427604,0.3608,98371.0,98370.0,0.00010822]
[1737963427812,0.564264,98371.0,98370.0,0.00010822]
[1737963428815,0.565264,98371.0,98370.0,0.00010822]
[1737963429312,0.203472,98367.0,98366.0,0.30243432]
[1737963429710,0.203489,98359.0,98358.0,0.36292119]
[1737963429912,0.203514,98347.0,98323.0,0.203563]
[1737963430304,0.20352,98344.0,98324.0,0.0131948]
[1737963430500,0.203526,98342.0,98321.0,0.3608]
[1737963430804,0.3608,98351.0,98321.0,0.3608]
[1737963431006,0.00015249,98346.0,98326.0,0.00015249]
[1737963432016,0.20367049,98346.0,98330.0,0.3618]
[1737963433014,0.00015249,98346.0,98338.0,0.3608]
[1737963433311,0.203547,98331.0,98326.0,0.00015249]
[1737963433506,0.3608,98327.0,98292.0,0.3608]
[1737963433702,0.20359,98311.0,98292.0,0.3608]
[1737963433903,0.33333766,98320.0,98300.0,0.4608]
[1737963434111,0.203572,98319.0,98300.0,0.4608]
[1737963434305,0.33333766,98320.0,98300.0,0.4608]
[1737963434703,0.00015257,98320.0,98311.0,0.3608]
[1737963436017,0.00152645,98334.0,98319.0,0.3608]
[1737963436716,0.00152645,98334.0,98327.0,0.3608]
[1737963437014,0.00152645,98334.0,98320.0,0.1929]
[1737963437216,0.203543,98333.0,98320.0,0.1929]
[1737963437522,0.3608,98333.0,98320.0,0.1929]
[1737963438012,0.3608,98333.0,98327.0,0.002]
[1737963438207,0.203551,98330.0,98327.0,0.002]
[1737963438711,0.203551,98330.0,98320.0,0.001]
[1737963439311,0.203551,98330.0,98327.0,0.004]
[1737963439711,0.17856248,98342.0,98327.0,0.004]
[1737963439712,0.01542658,98342.0,98329.0,0.3608]
[1737963440016,0.21328384,98398.0,98341.0,0.3608]
[1737963440316,0.3608,98404.0,98329.0,0.3743]
[1737963440317,0.203417,98394.0,98367.0,0.3608]
[1737963440512,0.3608,98396.0,98368.0,0.3608]
[1737963440715,0.00152534,98394.0,98368.0,0.3608]
[1737963441016,0.00152534,98394.0,98384.0,0.3608]
[1737963441207,0.00152534,98394.0,98368.0,0.3608]
[1737963441408,0.00152534,98394.0,98382.0,0.3608]
[1737963441614,0.2095277,98394.0,98382.0,0.3608]
[1737963442018,0.002,98385.0,98382.0,0.3608]
[1737963442414,0.008,98385.0,98382.0,0.3608]
[1737963442920,0.006,98385.0,98382.0,0.3608]
[1737963443121,0.006,98385.0,98368.0,0.3608]
[1737963443620,0.006,98385.0,98373.0,0.3608]
[1737963443823,0.3608,98387.0,98361.0,0.55385248]
[1737963443824,0.3608,98377.0,98361.0,0.00135248]
[1737963444029,0.21100236,98394.0,98361.0,0.00135248]
[1737963444030,0.3608,98368.0,98361.0,0.00015248]
[1737963444316,0.203481,98363.0,98361.0,0.00015248]
[1737963444524,0.3608,98368.0,98361.0,0.00015248]
[1737963445415,0.00015248,98374.0,98361.0,0.00015248]
[1737963445617,0.00015248,98374.0,98371.0,0.203464]
[1737963445923,0.00015248,98374.0,98370.0,0.3608]
[1737963446226,0.00015248,98374.0,98361.0,0.21745875]
[1737963446227,0.00015248,98374.0,98361.0,0.00015248]
[1737963446521,0.3608,98368.0,98361.0,0.00015248]
[1737963447926,0.203482,98363.0,98361.0,0.00015248]
[1737963448122,0.3618,98368.0,98361.0,0.00015248]
[1737963448818,0.001,98368.0,98365.0,0.3608]
[1737963449220,0.001,98368.0,98361.0,0.00015248]
[1737963449621,0.001,98368.0,98366.0,0.3608]
[1737963449919,0.3608,98383.0,98366.0,0.3608]
[1737963450120,0.00152561,98393.0,98382.0,0.3608]
[1737963450321,0.00152561,98393.0,98375.0,0.203455]
[1737963450528,0.00152561,98393.0,98380.0,0.3608]
[1737963451216,0.203424,98391.0,98380.0,0.3608]
[1737963451417,0.00152561,98393.0,98380.0,0.3608]
[1737963451618,0.00552561,98393.0,98380.0,0.3608]
[1737963451822,0.203453,98377.0,98375.0,0.001]
[1737963452224,0.3608,98383.0,98372.0,0.01347209]
[1737963452225,0.20346,98373.0,98372.0,0.01347209]
[1737963452721,0.3608,98376.0,98361.0,0.00015248]
[1737963452922,0.203482,98363.0,98361.0,0.00015248]
[1737963453522,0.00015248,98372.0,98361.0,0.00015248]
[1737963454017,0.00015248,98372.0,98368.0,0.3608]
[1737963454419,0.00015248,98372.0,98369.0,0.203468]
[1737963454732,0.00152561,98393.0,98368.0,0.3608]
[1737963454936,0.00152561,98393.0,98362.0,0.69413766]
[1737963454937,0.00052001,98405.0,98393.0,0.203418]
[1737963455120,0.00052001,98405.0,98392.0,0.7216]
[1737963455121,0.3608,98425.0,98402.0,0.3608]
[1737963455727,0.203373,98416.0,98402.0,0.3608]
[1737963455929,0.00015181,98415.0,98402.0,0.3608]
[1737963456119,0.14856109,98409.0,98402.0,0.3608]
[1737963456429,0.00015181,98415.0,98413.0,0.203377]
[1737963456631,0.00015181,98415.0,98402.0,1.0216]
[1737963456632,0.21328384,98445.0,98425.0,0.203351]
[1737963456822,0.01223835,98471.0,98435.0,0.3608]
[1737963457124,0.203282,98459.0,98435.0,0.3608]
[1737963457328,0.203294,98454.0,98435.0,0.3608]
[1737963457534,0.00056001,98467.0,98435.0,0.37296689]
[1737963457723,0.3608,98472.0,98442.0,0.3608]
[1737963457933,0.3608,98472.0,98454.0,0.3608]
[1737963458118,0.203271,98465.0,98454.0,0.3608]
[1737963458317,0.3608,98472.0,98454.0,0.3608]
[1737963458524,0.3608,98472.0,98464.0,0.3608]
[1737963458729,0.00152422,98485.0,98464.0,0.3608]
[1737963458929,0.00152422,98485.0,98467.0,0.3608]
[1737963459633,0.00152422,98485.0,98467.0,0.67298167]
[1737963459830,0.08959471,98482.0,98479.0,0.56404]
[1737963460022,0.00152422,98485.0,98479.0,0.56404]
[1737963460219,0.3608,98522.0,98484.0,0.3608]
[1737963460433,0.3608,98522.0,98499.0,0.3608]
[1737963461530,0.3608,98522.0,98508.0,0.3608]
[1737963462221,0.20905432,98523.0,98516.0,0.3608]
[1737963462430,0.001,98522.0,98516.0,0.3608]
[1737963463432,0.002,98522.0,98516.0,0.3608]
[1737963463731,0.002,98522.0,98505.0,0.00015231]
[1737963464033,0.002,98522.0,98506.0,0.3608]
[1737963464239,0.002,98522.0,98514.0,0.3608]
[1737963464240,0.001,98522.0,98514.0,0.3608]
[1737963464530,0.050743,98609.0,98514.0,0.3608]
[1737963464531,0.3608,98554.0,98519.0,0.203158]
[1737963464838,0.33333766,98570.0,98545.0,0.3608]
[1737963465532,0.33333766,98570.0,98548.0,0.00015223]
[1737963466121,0.3608,98573.0,98555.0,0.3608]
[1737963467428,0.203053,98571.0,98555.0,0.3618]
[1737963468126,0.3608,98565.0,98555.0,0.001]
[1737963468330,0.203072,98561.0,98555.0,0.001]
[1737963469330,0.3608,98556.0,98548.0,0.00015223]
[1737963469534,0.203087,98554.0,98527.0,0.203141]
[1737963470132,0.203098,98549.0,98522.0,0.3608]
[1737963470322,1.5,98553.0,98531.0,0.3608]
[1737963470843,0.00015139,98552.0,98532.0,0.00015223]
[1737963471628,0.00015139,98552.0,98542.0,0.3608]
[1737963471828,0.00015139,98552.0,98550.0,0.203093]
[1737963472034,0.00015139,98552.0,98542.0,0.3608]
[1737963472035,0.00215139,98552.0,98542.0,0.3608]
[1737963472435,0.00215139,98552.0,98551.0,0.3608]
[1737963472829,0.00015139,98552.0,98551.0,0.3608]
[1737963473629,0.00215139,98552.0,98551.0,0.3608]
[1737963474230,0.00115139,98552.0,98551.0,0.3608]
[1737963481336,0.203041,98576.0,98551.0,0.3608]
[1737963481537,0.3608,98584.0,98560.0,0.3608]
[1737963481740,1.5,98583.0,98560.0,0.3608]
[1737963481932,0.37300196,98584.0,98560.0,0.3608]
[1737963482442,0.203027,98583.0,98560.0,0.3608]
[1737963482639,0.3608,98563.0,98562.0,0.00015223]
[1737963483241,0.203045,98574.0,98562.0,0.00015223]
[1737963483427,0.203049,98573.0,98562.0,0.00015223]
[1737963483633,0.003,98576.0,98562.0,0.00015223]
[1737963483831,0.003,98576.0,98565.0,0.3608]
[1737963484435,0.3608,98571.0,98562.0,0.00015223]
[1737963484636,0.203066,98564.0,98562.0,0.00015223]
[1737963484945,0.3608,98563.0,98562.0,0.00015223]
[1737963485240,0.203097,98549.0,98531.0,0.01215885]
[1737963485441,0.203097,98549.0,98527.0,0.3608]
[1737963486040,0.203074,98560.0,98536.0,0.3608]
[1737963486243,0.3608,98571.0,98558.0,0.203077]
[1737963486548,0.203021,98586.0,98567.0,0.3608]
[1737963486841,0.00315223,98574.0,98567.0,0.3608]
[1737963487043,0.00315223,98574.0,98549.0,0.3608]
[1737963487230,0.00315223,98574.0,98557.0,0.3608]
[1737963487231,0.20319723,98574.0,98557.0,0.3608]
[1737963487631,0.00015223,98574.0,98570.0,0.3608]
[1737963487841,0.00015223,98574.0,98565.0,0.3618]
[1737963488241,0.20619823,98574.0,98565.0,0.40138]
[1737963488542,0.20619823,98574.0,98566.0,0.01014]
[1737963488543,0.00315223,98574.0,98566.0,0.01014]
[1737963488744,0.00315223,98574.0,98573.0,0.3608]
[1737963488935,0.00315223,98574.0,98566.0,0.01014]
[1737963489248,0.203049,98573.0,98566.0,0.01014]
[1737963489836,0.00315223,98574.0,98566.0,0.01014]
[1737963490042,0.203059,98568.0,98566.0,0.01014]
[1737963490346,0.00315223,98574.0,98567.0,0.3608]
[1737963491047,0.00315223,98574.0,98570.0,0.001]
[1737963491342,0.00015223,98574.0,98570.0,0.001]
[1737963491544,0.00152285,98591.0,98570.0,0.001]
[1737963491846,0.00152285,98591.0,98584.0,0.3608]
[1737963493444,0.00152285,98591.0,98584.0,0.38136456]
[1737963493831,0.06152285,98600.0,98584.0,0.38136456]
[1737963494048,0.06152285,98600.0,98593.0,0.3608]
[1737963494346,0.1,98610.0,98599.0,0.202992]
[1737963494536,0.1,98610.0,98609.0,0.3608]
[1737963495056,0.14875147,98625.0,98610.0,0.202971]
[1737963495243,0.14875147,98625.0,98615.0,0.3608]
[1737963495746,0.09049712,98625.0,98623.0,0.202944]
[1737963495943,0.1913,98671.0,98636.0,0.202916]
[1737963496146,0.202831,98678.0,98647.0,0.3608]
[1737963496537,0.202831,98678.0,98666.0,0.3608]
[1737963496751,0.3608,98685.0,98666.0,0.3608]
[1737963496944,0.1911,98689.0,98674.0,0.3608]
[1737963497448,0.202818,98685.0,98674.0,0.3608]
[1737963497648,0.202836,98676.0,98674.0,0.3608]
[1737963497841,0.3608,98681.0,98666.0,0.00015207]
[1737963498041,0.209818,98685.0,98666.0,0.00115207]
[1737963498242,0.3608,98669.0,98666.0,0.00115207]
[1737963498544,0.202895,98647.0,98642.0,0.3608]
[1737963498749,0.202903,98643.0,98642.0,0.3608]
[1737963498955,0.3608,98643.0,98597.0,0.3608]
[1737963499155,0.3608,98614.0,98597.0,0.3608]
[1737963499336,0.3608,98614.0,98596.0,0.3608]
[1737963499543,0.3608,98614.0,98596.0,0.37316543]
[1737963500250,0.3608,98602.0,98596.0,0.01236543]
[1737963500448,1.8608,98602.0,98595.0,0.00167368]
[1737963500845,0.3608,98602.0,98595.0,0.00167368]
[1737963501147,0.00015151,98615.0,98598.0,0.202995]
[1737963501353,0.00015151,98615.0,98598.0,0.211105]
[1737963501851,0.35595151,98617.0,98598.0,0.00811]
[1737963502049,0.3608,98621.0,98601.0,0.3608]
[1737963502444,0.001,98615.0,98601.0,0.3608]
[1737963503044,0.3608,98610.0,98598.0,0.00811]
[1737963503244,0.3608,98601.0,98598.0,0.00811]
[1737963503853,0.3608,98610.0,98598.0,0.00811]
[1737963504958,0.001,98621.0,98601.0,0.3608]
[1737963505147,0.3608,98613.0,98601.0,0.3608]
[1737963505347,0.3608,98613.0,98605.0,0.20298]
[1737963505548,0.3608,98613.0,98611.0,0.202967]
[1737963505750,0.3608,98613.0,98601.0,0.563788]
[1737963506051,0.3608,98613.0,98601.0,0.3608]
[1737963506257,0.3608,98613.0,98601.0,0.43179]
[1737963506458,0.3608,98613.0,98601.0,0.43279]
[1737963507156,0.00152161,98628.0,98609.0,0.3608]
[1737963507355,0.00152161,98628.0,98621.0,0.3608]
[1737963507657,0.3608,98622.0,98609.0,0.3608]
[1737963508552,0.3608,98622.0,98609.0,0.01237022]
[1737963508858,0.3608,98622.0,98609.0,0.001]
[1737963509359,0.00152161,98628.0,98609.0,0.001]
[1737963509360,0.202937,98627.0,98609.0,0.001]
[1737963509660,0.202937,98627.0,98610.0,0.01014]
[1737963510068,0.00152161,98628.0,98616.0,0.202957]
[1737963510565,0.3608,98653.0,98616.0,0.202957]
[1737963510566,0.3608,98660.0,98646.0,0.202896]
[1737963510751,0.3608,98668.0,98646.0,0.202896]
[1737963510951,0.3608,98659.0,98638.0,0.3608]
[1737963511256,0.3608,98659.0,98627.0,0.3608]
[1737963511257,0.3608,98650.0,98645.0,0.00015207]
[1737963511562,0.3608,98654.0,98645.0,0.00015207]
[1737963512065,0.3608,98654.0,98646.0,0.001]
[1737963512661,0.3608,98654.0,98645.0,0.00015207]
[1737963513363,0.37329418,98662.0,98645.0,0.00015207]
[1737963513364,0.3608,98662.0,98645.0,0.00015207]
[1737963513959,0.563666,98662.0,98645.0,0.00015207]
[1737963514357,0.3608,98662.0,98645.0,0.00015207]
[1737963514572,0.3608,98662.0,98652.0,0.202883]
[1737963514758,0.3608,98662.0,98645.0,0.00825207]
[1737963514951,0.3608,98662.0,98653.0,0.202881]
[1737963515152,0.3618,98662.0,98653.0,0.202881]
[1737963515766,0.00152113,98663.0,98654.0,0.3608]
[1737963515962,0.00152113,98663.0,98662.0,0.3608]
[1737963516156,0.3608,98692.0,98662.0,0.3608]
[1737963516365,0.3608,98692.0,98672.0,0.202842]
[1737963517260,0.3608,98692.0,98678.0,0.3608]
[1737963517466,0.1,98700.0,98679.0,0.202828]
[1737963517769,0.3608,98685.0,98670.0,0.3608]
[1737963517958,0.3608,98685.0,98672.0,0.001]
[1737963518377,0.3608,98696.0,98672.0,0.001]
[1737963518565,0.3608,98696.0,98670.0,0.3608]
[1737963518566,0.3608,98696.0,98679.0,0.001]
[1737963518959,0.002,98685.0,98679.0,0.001]
[1737963519163,0.002,98685.0,98678.0,0.2618]
[1737963519570,0.002,98685.0,98678.0,0.464631]
[1737963519769,0.1,98700.0,98678.0,0.464631]
[1737963519770,0.1,98700.0,98699.0,0.202788]
[1737963519965,0.1,98700.0,98699.0,0.563588]
[1737963520269,0.07974689,98700.0,98690.0,0.20295698]
[1737963520571,0.07974689,98700.0,98690.0,0.21105698]
[1737963520872,0.004,98696.0,98690.0,0.21105698]
[1737963521258,0.004,98696.0,98695.0,0.202796]
[1737963521667,0.07974689,98700.0,98697.0,0.202792]
[1737963521865,0.07974689,98700.0,98698.0,0.202789]
[1737963523058,0.07974689,98700.0,98695.0,0.003]
[1737963523457,0.3608,98696.0,98695.0,0.003]
[1737963523663,0.2028,98693.0,98690.0,0.00825198]
[1737963523861,0.202804,98692.0,98690.0,0.01225198]
[1737963524071,0.6608,98693.0,98662.0,0.00011248]
[1737963524260,0.3608,98668.0,98662.0,0.00011248]
[1737963524461,0.3608,98668.0,98662.0,0.0119043]
[1737963524666,0.3608,98668.0,98662.0,0.0524443]
[1737963524863,0.3608,98668.0,98662.0,0.04065248]
[1737963525060,0.202862,98663.0,98662.0,0.04065248]
[1737963525461,0.3608,98668.0,98662.0,0.04065248]
[1737963525761,0.3608,98670.0,98662.0,0.04265248]
[1737963525967,0.3608,98680.0,98667.0,0.202852]
[1737963526667,0.3608,98680.0,98662.0,0.04465248]
[1737963526970,0.00052001,98689.0,98674.0,0.202839]
[1737963527167,0.3608,98690.0,98674.0,0.202839]
[1737963527671,0.3608,98690.0,98668.0,0.37093]
[1737963527876,0.002,98675.0,98668.0,0.37093]
[1737963528376,0.3608,98690.0,98668.0,0.37093]
[1737963528568,0.3668,98690.0,98668.0,0.37093]
[1737963528765,0.3608,98682.0,98668.0,0.37093]
[1737963528961,0.3608,98671.0,98668.0,0.01013]
[1737963529165,0.20285,98669.0,98668.0,0.01013]
[1737963529481,0.37284125,98671.0,98662.0,1e-08]
[1737963529767,0.37284125,98671.0,98635.0,0.3608]
[1737963529768,0.202881,98654.0,98640.0,0.0116154]
[1737963530073,0.01204125,98671.0,98653.0,0.3608]
[1737963530271,0.3608,98680.0,98653.0,0.3608]
[1737963530461,0.3608,98656.0,98642.0,0.3608]
[1737963530668,0.1,98663.0,98642.0,0.3608]
[1737963530873,0.002,98654.0,98646.0,0.00642]
[1737963531470,0.00015198,98660.0,98646.0,0.00642]
[1737963532068,0.00015198,98660.0,98648.0,0.202892]
[1737963532375,0.3608,98656.0,98646.0,0.01042]
[1737963533177,0.3608,98648.0,98646.0,0.00942]
[1737963533374,0.00010126,98655.0,98646.0,0.00942]
[1737963533576,0.00010126,98655.0,98646.0,0.00642]
[1737963533577,0.3608,98647.0,98646.0,0.00642]
[1737963534478,0.3608,98647.0,98646.0,0.00842]
[1737963534868,0.00056001,98680.0,98646.0,0.00842]
[1737963535076,0.202812,98688.0,98666.0,0.202855]
[1737963535282,0.3608,98686.0,98666.0,0.202855]
[1737963536069,0.202819,98684.0,98666.0,0.00015206]
[1737963536273,0.3608,98686.0,98672.0,0.3608]
[1737963536670,0.3638,98686.0,98672.0,0.3608]
[1737963536871,0.35580252,98686.0,98672.0,0.3608]
[1737963537071,0.35580252,98686.0,98672.0,0.563642]
[1737963537280,0.00016076,98679.0,98672.0,0.563642]
[1737963537472,0.00016076,98679.0,98672.0,0.3618]
[1737963537673,0.00016076,98679.0,98672.0,0.37371118]
[1737963538076,0.00016076,98679.0,98678.0,0.202831]
[1737963538683,0.00016076,98679.0,98672.0,0.37371118]
[1737963539079,0.00216076,98679.0,98672.0,0.01291118]
[1737963539476,0.00216076,98679.0,98672.0,0.01191118]
[1737963539772,0.00716076,98679.0,98676.0,0.202834]
[1737963540382,0.00716076,98679.0,98672.0,0.001]
[1737963540583,0.20999076,98679.0,98672.0,0.0128264]
[1737963540786,0.00716076,98679.0,98672.0,0.001]
[1737963540981,0.00716076,98679.0,98672.0,0.01286197]
[1737963541288,0.00716076,98679.0,98676.0,0.001]
[1737963541781,0.202854,98667.0,98666.0,0.00015206]
[1737963541982,0.3608,98667.0,98646.0,0.00794053]
[1737963542174,0.3608,98647.0,98646.0,0.00642]
[1737963542370,0.3608,98647.0,98601.0,0.3608]
[1737963542570,0.3608,98629.0,98601.0,0.3608]
[1737963542783,0.202893,98648.0,98625.0,0.20294]
[1737963543088,0.3608,98656.0,98635.0,0.202918]
[1737963543089,0.00015206,98646.0,98635.0,0.202918]
[1737963543474,0.00015206,98646.0,98631.0,0.3608]
[1737963543670,0.00015206,98646.0,98635.0,0.03826]
[1737963543876,0.3608,98636.0,98635.0,0.03826]
[1737963544074,0.00015206,98646.0,98635.0,0.03826]
[1737963544491,0.202903,98643.0,98635.0,0.03826]
[1737963544790,0.202908,98641.0,98635.0,0.03826]
[1737963544982,0.00015206,98646.0,98635.0,0.03826]
[1737963545289,0.3608,98638.0,98627.0,0.00015206]
[1737963545583,0.3608,98628.0,98557.0,0.3608]
[1737963545774,0.44719052,98645.0,98557.0,0.3608]
[1737963545775,0.33333766,98590.0,98557.0,0.3608]
[1737963545981,0.3608,98579.0,98568.0,0.203057]
[1737963546182,0.3608,98579.0,98557.0,0.3608]
[1737963546380,0.3608,98568.0,98554.0,0.5976]
[1737963546582,0.563857,98568.0,98567.0,0.32155906]
[1737963547384,0.56395599,98568.0,98567.0,0.32155906]
[1737963548188,0.36089899,98568.0,98567.0,0.32155906]
[1737963548686,9.899e-05,98568.0,98567.0,0.32155906]
[1737963549294,0.00015214,98578.0,98567.0,0.32155906]
[1737963549685,0.3608,98577.0,98567.0,0.32155906]
[1737963549992,0.3608,98577.0,98567.0,0.32255906]
[1737963550182,0.00015214,98578.0,98567.0,0.32255906]
[1737963550586,0.33333766,98610.0,98567.0,0.32255906]
[1737963550587,0.3608,98609.0,98576.0,0.56384]
[1737963550784,0.3608,98609.0,98591.0,0.3608]
[1737963551091,0.563775,98609.0,98591.0,0.3608]
[1737963551287,0.36140001,98609.0,98576.0,0.3608]
[1737963551485,0.3608,98586.0,98575.0,0.01182904]
[1737963551681,0.3608,98600.0,98581.0,0.00015214]
[1737963551682,0.3608,98596.0,98581.0,0.00015214]
[1737963551890,0.203011,98591.0,98581.0,0.00015214]
[1737963552295,0.3608,98588.0,98581.0,0.00015214]
[1737963552999,0.563828,98583.0,98581.0,0.00015214]
[1737963554293,0.203071,98562.0,98557.0,0.00811]
[1737963554796,0.3608,98563.0,98557.0,0.02013068]
[1737963555102,0.3638,98583.0,98560.0,0.3608]
[1737963555103,0.003,98583.0,98560.0,0.3608]